[Event "Early-Titled-Tuesday-Blitz-March-19-2024"]
[Site "Chess.com"]
[Date "2024.03.19"]
[Round "10"]
[White "newauto"]
[Black "visa"]
[Result "1-0"]
[WhiteElo "2148"]
[BlackElo "2285"]
[TimeControl "180+1"]
[EndTime "9:56:13 PDT"]
[Termination "newauto won by resignation"]

1. d4 {[%clk 0:01:55.4]} 1... d5 {[%clk 0:02:58.9]} 2. Nf3 {[%clk 0:01:56.3]}
2... Nf6 {[%clk 0:02:58.8]} 3. Bg5 {[%clk 0:01:55.3]} 3... Ne4 {[%clk
0:02:57.5]} 4. Bh4 {[%clk 0:01:55]} 4... c5 {[%clk 0:02:57.6]} 5. e3 {[%clk
0:01:54.5]} 5... Qb6 {[%clk 0:02:57.4]} 6. Nbd2 {[%clk 0:01:54.5]} 6... Qxb2
{[%clk 0:02:51]} 7. Nxe4 {[%clk 0:01:45.8]} 7... dxe4 {[%clk 0:02:46.3]} 8. Rb1
{[%clk 0:01:44.8]} 8... Qc3+ {[%clk 0:02:41]} 9. Nd2 {[%clk 0:01:44.5]} 9...
cxd4 {[%clk 0:02:25.3]} 10. Rb3 {[%clk 0:01:35.2]} 10... Qa5 {[%clk 0:02:24]}
11. exd4 {[%clk 0:01:33]} 11... Nc6 {[%clk 0:02:16.5]} 12. c3 {[%clk 0:01:19.2]}
12... Be6 {[%clk 0:01:55.8]} 13. Bc4 {[%clk 0:01:16.4]} 13... Bxc4 {[%clk
0:01:44.4]} 14. Nxc4 {[%clk 0:01:17.3]} 14... Qd5 {[%clk 0:01:44.5]} 15. Qe2
{[%clk 0:01:13.9]} 15... e6 {[%clk 0:01:31.2]} 16. Rxb7 {[%clk 0:01:07.5]} 16...
Nxd4 {[%clk 0:01:27.5]} 17. cxd4 {[%clk 0:00:54.8]} 17... Qxb7 {[%clk
0:01:25.6]} 18. O-O {[%clk 0:00:54.2]} 18... Be7 {[%clk 0:01:17.6]} 19. Bxe7
{[%clk 0:00:49.6]} 19... Kxe7 {[%clk 0:01:10.6]} 20. Qg4 {[%clk 0:00:48.9]}
20... g6 {[%clk 0:00:55.7]} 21. Qf4 {[%clk 0:00:39.6]} 21... Rhd8 {[%clk
0:00:41.2]} 22. Qh4+ {[%clk 0:00:37.5]} 22... Kf8 {[%clk 0:00:18.6]} 23. Qxh7
{[%clk 0:00:36.3]} 23... Rac8 {[%clk 0:00:15.4]} 24. Qh8+ {[%clk 0:00:31.7]}
24... Ke7 {[%clk 0:00:14.9]} 25. Qh4+ {[%clk 0:00:30.6]} 25... Kd7 {[%clk
0:00:14.4]} 26. Ne5+ {[%clk 0:00:27]} 26... Kc7 {[%clk 0:00:12.2]} 27. Nxf7
{[%clk 0:00:19.8]} 27... Rxd4 {[%clk 0:00:12.2]} 28. Qg3+ {[%clk 0:00:17.6]}
28... Kd7 {[%clk 0:00:10]} 29. Ne5+ {[%clk 0:00:16.8]} 29... Ke7 {[%clk
0:00:07.8]} 30. Qg5+ {[%clk 0:00:13.3]} 30... Kd6 {[%clk 0:00:07.6]} 31. Nxg6
{[%clk 0:00:09.5]} 31... Qd5 {[%clk 0:00:06.4]} 32. Qe7+ {[%clk 0:00:08.5]}
32... Kc6 {[%clk 0:00:05.7]} 33. Rc1+ {[%clk 0:00:08.3]} 33... Rc4 {[%clk
0:00:05.8]} 34. Ne5+ {[%clk 0:00:05.5]} 34... Kb6 {[%clk 0:00:04.1]} 35. Nxc4+
{[%clk 0:00:05.1]} 35... Rxc4 {[%clk 0:00:05]} 36. Rb1+ {[%clk 0:00:02.9]} 36...
Kc6 {[%clk 0:00:03]} 37. Qe8+ {[%clk 0:00:02.8]} 37... Kd6 {[%clk 0:00:03.9]}
38. Qd8+ {[%clk 0:00:03]} 38... Ke5 {[%clk 0:00:04.4]} 39. Qg5+ {[%clk
0:00:02.7]} 39... Kd4 {[%clk 0:00:04.7]} 40. Qg7+ {[%clk 0:00:02.9]} 40... Kc5
{[%clk 0:00:04.1]} 41. Qg4 {[%clk 0:00:03.2]} 41... Qd3 {[%clk 0:00:03.1]} 42.
Re1 {[%clk 0:00:02.9]} 42... Rc2 {[%clk 0:00:02.6]} 43. Qg5+ {[%clk 0:00:03.3]}
43... Kd4 {[%clk 0:00:02.7]} 44. h3 {[%clk 0:00:03.4]} 44... Kc3 {[%clk
0:00:03.6]} 45. Kh2 {[%clk 0:00:03.7]} 45... Rd2 {[%clk 0:00:04.4]} 46. Rc1+
{[%clk 0:00:03.7]} 46... Kb2 {[%clk 0:00:04.5]} 47. Qc5 {[%clk 0:00:04.2]} 47...
Rc2 {[%clk 0:00:03]} 48. Qxc2+ {[%clk 0:00:04]} 48... Qxc2 {[%clk 0:00:03.9]}
49. Rxc2+ {[%clk 0:00:04.7]} 49... Kxc2 {[%clk 0:00:04.7]} 50. h4 {[%clk
0:00:05.3]} 50... Kd2 {[%clk 0:00:05.6]} 51. h5 {[%clk 0:00:06.1]} 51... Ke2
{[%clk 0:00:06.2]} 52. h6 {[%clk 0:00:07]} 52... Kxf2 {[%clk 0:00:07.1]} 53. h7
{[%clk 0:00:07.8]} 53... e3 {[%clk 0:00:08]} 54. h8=Q {[%clk 0:00:08.6]} 54...
e2 {[%clk 0:00:08.9]} 55. Qf6+ {[%clk 0:00:08.6]} 55... Ke3 {[%clk 0:00:08.2]}
56. Qxe6+ {[%clk 0:00:09.5]} 56... Kd2 {[%clk 0:00:08.9]} 57. Qd6+ {[%clk
0:00:10.1]} 57... Kc1 {[%clk 0:00:09]} 58. Qe5 {[%clk 0:00:10.4]} 58... Kd1
{[%clk 0:00:09.9]} 59. Qd4+ {[%clk 0:00:10.9]} 59... Kc1 {[%clk 0:00:10.1]} 60.
Qe3+ {[%clk 0:00:11.4]} 60... Kd1 {[%clk 0:00:10.6]} 61. Qd3+ {[%clk 0:00:11.9]}
61... Ke1 {[%clk 0:00:10.3]} 62. g4 {[%clk 0:00:11.5]} 62... Kf2 {[%clk
0:00:11.2]} 63. Qxe2+ {[%clk 0:00:11.5]} 63... Kxe2 {[%clk 0:00:11.4]} 64. g5
{[%clk 0:00:12.4]} 64... Kd2 {[%clk 0:00:12]} 65. g6 {[%clk 0:00:13.3]} 65...
Kc2 {[%clk 0:00:12.9]} 66. g7 {[%clk 0:00:14.2]} 66... a5 {[%clk 0:00:13.4]} 67.
g8=Q {[%clk 0:00:15.1]} 67... a4 {[%clk 0:00:14.3]} 68. Qa8 {[%clk 0:00:15.9]}
1-0

[Event "Early-Titled-Tuesday-Blitz-March-19-2024"]
[Site "Chess.com"]
[Date "2024.03.19"]
[Round "10"]
[White "Seochesspie"]
[Black "Hope_6"]
[Result "1-0"]
[WhiteElo "2881"]
[BlackElo "2711"]
[TimeControl "180+1"]
[EndTime "9:56:17 PDT"]
[Termination "Seochesspie won on time"]

1. e4 {[%clk 0:03:00.9]} 1... c6 {[%clk 0:02:58.2]} 2. d4 {[%clk 0:02:59.8]}
2... d5 {[%clk 0:02:59.1]} 3. Nd2 {[%clk 0:03:00.3]} 3... dxe4 {[%clk
0:02:59.5]} 4. Nxe4 {[%clk 0:03:01.2]} 4... Nf6 {[%clk 0:02:59.7]} 5. Nxf6+
{[%clk 0:03:01.4]} 5... exf6 {[%clk 0:03:00.6]} 6. Be3 {[%clk 0:03:01.1]} 6...
Bd6 {[%clk 0:02:59.4]} 7. Bd3 {[%clk 0:03:01.4]} 7... Be6 {[%clk 0:02:46]} 8.
Ne2 {[%clk 0:02:58.9]} 8... Nd7 {[%clk 0:02:45.2]} 9. O-O {[%clk 0:02:52.8]}
9... O-O {[%clk 0:02:43.8]} 10. c4 {[%clk 0:02:51.2]} 10... Re8 {[%clk
0:02:38.9]} 11. Qc2 {[%clk 0:02:47.7]} 11... Nf8 {[%clk 0:02:38.1]} 12. Rad1
{[%clk 0:02:41.2]} 12... Rc8 {[%clk 0:02:35.3]} 13. Nc3 {[%clk 0:02:33.5]} 13...
Ng6 {[%clk 0:02:25.5]} 14. Ne4 {[%clk 0:02:06.9]} 14... Bb8 {[%clk 0:02:22]} 15.
Nc5 {[%clk 0:02:00.2]} 15... Qc7 {[%clk 0:02:14.4]} 16. g3 {[%clk 0:01:58.4]}
16... Rcd8 {[%clk 0:02:11.3]} 17. Nxe6 {[%clk 0:01:56.1]} 17... Rxe6 {[%clk
0:02:10.8]} 18. Rfe1 {[%clk 0:01:51]} 18... Rde8 {[%clk 0:02:07.5]} 19. Bd2
{[%clk 0:01:45.9]} 19... Rxe1+ {[%clk 0:01:50.9]} 20. Rxe1 {[%clk 0:01:42.1]}
20... Rxe1+ {[%clk 0:01:50.5]} 21. Bxe1 {[%clk 0:01:43]} 21... Nf8 {[%clk
0:01:46.9]} 22. Bc3 {[%clk 0:01:32.7]} 22... h5 {[%clk 0:01:44.5]} 23. h4 {[%clk
0:01:21.6]} 23... Qd7 {[%clk 0:01:36]} 24. Qe2 {[%clk 0:01:15.7]} 24... g6
{[%clk 0:01:31.5]} 25. Qf3 {[%clk 0:01:10.6]} 25... f5 {[%clk 0:01:27.2]} 26. d5
{[%clk 0:01:06.7]} 26... cxd5 {[%clk 0:01:22.9]} 27. cxd5 {[%clk 0:01:04.8]}
27... Qe7 {[%clk 0:01:19.6]} 28. Bc4 {[%clk 0:00:47.3]} 28... Bd6 {[%clk
0:01:05]} 29. Qd3 {[%clk 0:00:39.9]} 29... Nd7 {[%clk 0:01:03.4]} 30. Qd4 {[%clk
0:00:33.8]} 30... Be5 {[%clk 0:00:45.5]} 31. Qxa7 {[%clk 0:00:33]} 31... Bxc3
{[%clk 0:00:45.8]} 32. bxc3 {[%clk 0:00:33.6]} 32... Nc5 {[%clk 0:00:37.7]} 33.
Bf1 {[%clk 0:00:19]} 33... Ne4 {[%clk 0:00:31]} 34. Qd4 {[%clk 0:00:17.9]} 34...
Qd6 {[%clk 0:00:24.5]} 35. c4 {[%clk 0:00:18]} 35... b6 {[%clk 0:00:24.2]} 36.
Bd3 {[%clk 0:00:17.5]} 36... Qc5 {[%clk 0:00:22.4]} 37. Qxc5 {[%clk 0:00:17.4]}
37... Nxc5 {[%clk 0:00:23.3]} 38. Bc2 {[%clk 0:00:17.7]} 38... Kf8 {[%clk
0:00:23.1]} 39. Kf1 {[%clk 0:00:18.1]} 39... Ke7 {[%clk 0:00:21.6]} 40. Ke2
{[%clk 0:00:18.5]} 40... Kd6 {[%clk 0:00:20.4]} 41. Ke3 {[%clk 0:00:18.9]} 41...
Nd7 {[%clk 0:00:20.3]} 42. Kd4 {[%clk 0:00:19.3]} 42... Ne5 {[%clk 0:00:20.1]}
43. Bd1 {[%clk 0:00:16.9]} 43... Nd7 {[%clk 0:00:17.3]} 44. Ba4 {[%clk
0:00:13.5]} 44... Ne5 {[%clk 0:00:15.7]} 45. Be8 {[%clk 0:00:10.7]} 45... f6
{[%clk 0:00:15.2]} 46. f4 {[%clk 0:00:09.3]} 46... Nf3+ {[%clk 0:00:11.8]} 47.
Kc3 {[%clk 0:00:08.2]} 47... g5 {[%clk 0:00:11.2]} 48. Bxh5 {[%clk 0:00:07.2]}
48... Ng1 {[%clk 0:00:01.5]} 49. hxg5 {[%clk 0:00:06.8]} 49... fxg5 {[%clk
0:00:02.4]} 50. fxg5 {[%clk 0:00:07.1]} 50... Nh3 {[%clk 0:00:02.7]} 51. g6
{[%clk 0:00:06.9]} 1-0

[Event "Early-Titled-Tuesday-Blitz-March-19-2024"]
[Site "Chess.com"]
[Date "2024.03.19"]
[Round "10"]
[White "maurovargas01"]
[Black "Janh4"]
[Result "0-1"]
[WhiteElo "1820"]
[BlackElo "2165"]
[TimeControl "180+1"]
[EndTime "9:56:18 PDT"]
[Termination "Janh4 won on time"]

1. e4 {[%clk 0:02:59.3]} 1... c6 {[%clk 0:02:59.6]} 2. Nc3 {[%clk 0:02:57.7]}
2... d5 {[%clk 0:02:59.8]} 3. exd5 {[%clk 0:02:57.3]} 3... cxd5 {[%clk
0:03:00.1]} 4. d4 {[%clk 0:02:57]} 4... Nc6 {[%clk 0:03:00.1]} 5. Bb5 {[%clk
0:02:57.2]} 5... Nf6 {[%clk 0:02:58.6]} 6. Nf3 {[%clk 0:02:57.3]} 6... Bg4
{[%clk 0:02:58.2]} 7. O-O {[%clk 0:02:52.2]} 7... e6 {[%clk 0:02:57]} 8. Re1
{[%clk 0:02:42.4]} 8... Be7 {[%clk 0:02:56]} 9. Be3 {[%clk 0:02:34.6]} 9... O-O
{[%clk 0:02:54]} 10. a3 {[%clk 0:01:39.8]} 10... Rc8 {[%clk 0:02:49.7]} 11. Bd3
{[%clk 0:01:38.4]} 11... a6 {[%clk 0:02:47.8]} 12. h3 {[%clk 0:01:34.4]} 12...
Bh5 {[%clk 0:02:47.5]} 13. g4 {[%clk 0:01:31.7]} 13... Bg6 {[%clk 0:02:45.2]}
14. Ne5 {[%clk 0:01:25.9]} 14... Nd7 {[%clk 0:02:20]} 15. Nxg6 {[%clk
0:01:22.7]} 15... hxg6 {[%clk 0:02:19.6]} 16. f4 {[%clk 0:01:15.4]} 16... Qc7
{[%clk 0:02:00.4]} 17. f5 {[%clk 0:01:12.8]} 17... Qg3+ {[%clk 0:01:56.7]} 18.
Kf1 {[%clk 0:00:51.1]} 18... Qxh3+ {[%clk 0:01:53.7]} 19. Kg1 {[%clk 0:00:47.8]}
19... Bd6 {[%clk 0:01:29.1]} 20. Qe2 {[%clk 0:00:42.9]} 20... exf5 {[%clk
0:01:00.4]} 21. gxf5 {[%clk 0:00:37.7]} 21... Rfe8 {[%clk 0:00:58.1]} 22. Nd1
{[%clk 0:00:25.4]} 22... gxf5 {[%clk 0:00:52.6]} 23. Qf2 {[%clk 0:00:20.8]}
23... Bg3 {[%clk 0:00:45.8]} 24. Qxf5 {[%clk 0:00:13.1]} 24... Qxf5 {[%clk
0:00:45.1]} 25. Bxf5 {[%clk 0:00:11.8]} 25... Bxe1 {[%clk 0:00:43.4]} 26. Bxd7
{[%clk 0:00:11.9]} 26... Rcd8 {[%clk 0:00:40.6]} 27. Bxe8 {[%clk 0:00:11.8]}
27... Rxe8 {[%clk 0:00:40.7]} 28. Kf1 {[%clk 0:00:11.9]} 28... Bh4 {[%clk
0:00:39.6]} 29. Kg2 {[%clk 0:00:09.4]} 29... Bf6 {[%clk 0:00:34.1]} 30. c3
{[%clk 0:00:08.2]} 30... Na5 {[%clk 0:00:34.5]} 31. Bf4 {[%clk 0:00:04.9]} 31...
g5 {[%clk 0:00:24.1]} 32. Bg3 {[%clk 0:00:04.5]} 32... Nc4 {[%clk 0:00:21.4]}
33. Kf2 {[%clk 0:00:03.8]} 33... Nd2 {[%clk 0:00:20.3]} 34. Ne3 {[%clk
0:00:02.9]} 34... Ne4+ {[%clk 0:00:18.2]} 35. Kf3 {[%clk 0:00:02.2]} 35... Nxg3
{[%clk 0:00:18.3]} 36. Kxg3 {[%clk 0:00:03.1]} 36... Rxe3+ {[%clk 0:00:18]} 37.
Kf2 {[%clk 0:00:04]} 37... Re4 {[%clk 0:00:17.4]} 38. Rf1 {[%clk 0:00:04.4]}
38... Rf4+ {[%clk 0:00:17]} 39. Ke2 {[%clk 0:00:03.3]} 39... Rxf1 {[%clk
0:00:17.1]} 40. Kxf1 {[%clk 0:00:04.2]} 40... Be7 {[%clk 0:00:16.7]} 41. Kg2
{[%clk 0:00:05.1]} 41... f5 {[%clk 0:00:17.2]} 42. Kf3 {[%clk 0:00:06]} 42...
Kg7 {[%clk 0:00:17.5]} 43. b3 {[%clk 0:00:06.3]} 43... Bxa3 {[%clk 0:00:16.4]}
44. c4 {[%clk 0:00:06.2]} 44... dxc4 {[%clk 0:00:16.4]} 45. bxc4 {[%clk
0:00:06.9]} 45... Kf6 {[%clk 0:00:16.7]} 46. d5 {[%clk 0:00:07.8]} 46... Bd6
{[%clk 0:00:15.1]} 47. Ke3 {[%clk 0:00:07.3]} 47... g4 {[%clk 0:00:15.1]} 48.
Kd4 {[%clk 0:00:06.8]} 48... g3 {[%clk 0:00:15.1]} 49. c5 {[%clk 0:00:06.9]}
49... Bxc5+ {[%clk 0:00:13.1]} 50. Kxc5 {[%clk 0:00:06.7]} 50... g2 {[%clk
0:00:13.2]} 51. Kd6 {[%clk 0:00:05.4]} 51... g1=Q {[%clk 0:00:12.8]} 52. Kd7
{[%clk 0:00:03]} 52... Qc5 {[%clk 0:00:12.5]} 53. d6 {[%clk 0:00:02.8]} 53... f4
{[%clk 0:00:11.9]} 0-1

[Event "Early-Titled-Tuesday-Blitz-March-19-2024"]
[Site "Chess.com"]
[Date "2024.03.19"]
[Round "10"]
[White "LileKoridze"]
[Black "Lion-Al-Messi"]
[Result "1-0"]
[WhiteElo "2444"]
[BlackElo "2585"]
[TimeControl "180+1"]
[EndTime "9:56:19 PDT"]
[Termination "LileKoridze won on time"]

1. d4 {[%clk 0:03:00.9]} 1... Nf6 {[%clk 0:02:44]} 2. c4 {[%clk 0:03:00.7]} 2...
b6 {[%clk 0:02:39.4]} 3. Nf3 {[%clk 0:03:00.1]} 3... Bb7 {[%clk 0:02:39.3]} 4.
g3 {[%clk 0:03:00.5]} 4... e6 {[%clk 0:02:36.3]} 5. Bg2 {[%clk 0:03:00.6]} 5...
Be7 {[%clk 0:02:35.5]} 6. O-O {[%clk 0:03:00.9]} 6... O-O {[%clk 0:02:35.8]} 7.
Nc3 {[%clk 0:03:01.4]} 7... Ne4 {[%clk 0:02:34.1]} 8. Qc2 {[%clk 0:03:01.2]}
8... Nxc3 {[%clk 0:02:32.8]} 9. Qxc3 {[%clk 0:03:02.1]} 9... Bf6 {[%clk
0:02:31.2]} 10. Rd1 {[%clk 0:02:52.9]} 10... c5 {[%clk 0:02:30.6]} 11. Be3
{[%clk 0:02:50.4]} 11... Nc6 {[%clk 0:02:27.9]} 12. Qd2 {[%clk 0:02:48.9]} 12...
Nxd4 {[%clk 0:02:19.3]} 13. Nxd4 {[%clk 0:02:48.9]} 13... Bxg2 {[%clk
0:02:17.4]} 14. Kxg2 {[%clk 0:02:48.9]} 14... cxd4 {[%clk 0:02:16.5]} 15. Bxd4
{[%clk 0:02:43.4]} 15... Rc8 {[%clk 0:02:08.3]} 16. b3 {[%clk 0:02:41.5]} 16...
Bg5 {[%clk 0:01:47.7]} 17. e3 {[%clk 0:02:39.3]} 17... d5 {[%clk 0:01:46.2]} 18.
Qb2 {[%clk 0:02:32]} 18... Bh6 {[%clk 0:01:33.9]} 19. e4 {[%clk 0:02:30.4]}
19... Qe7 {[%clk 0:01:18.6]} 20. cxd5 {[%clk 0:02:26.9]} 20... exd5 {[%clk
0:01:19.5]} 21. exd5 {[%clk 0:02:27.6]} 21... Qe4+ {[%clk 0:01:19.4]} 22. Kg1
{[%clk 0:02:27.4]} 22... Rc2 {[%clk 0:01:17.9]} 23. Qa3 {[%clk 0:02:23.8]} 23...
Rd8 {[%clk 0:01:03.3]} 24. Qxa7 {[%clk 0:02:16]} 24... Bg5 {[%clk 0:00:47.3]}
25. Qxb6 {[%clk 0:02:13.3]} 25... h5 {[%clk 0:00:45.7]} 26. Be3 {[%clk
0:01:49.9]} 26... Bf6 {[%clk 0:00:40.9]} 27. d6 {[%clk 0:01:45.1]} 27... h4
{[%clk 0:00:39.3]} 28. Qb5 {[%clk 0:01:38.5]} 28... h3 {[%clk 0:00:36.3]} 29.
Qf1 {[%clk 0:01:37.8]} 29... Bxa1 {[%clk 0:00:33.9]} 30. Rxa1 {[%clk 0:01:37.5]}
30... Qe6 {[%clk 0:00:25.4]} 31. Bf4 {[%clk 0:01:35.3]} 31... f6 {[%clk
0:00:20.6]} 32. Re1 {[%clk 0:01:31.8]} 32... Qf5 {[%clk 0:00:17.4]} 33. Re2
{[%clk 0:01:25.5]} 33... Rxe2 {[%clk 0:00:15.8]} 34. Qxe2 {[%clk 0:01:26.4]}
34... Qb1+ {[%clk 0:00:14.4]} 35. Qf1 {[%clk 0:01:26.2]} 35... Qxa2 {[%clk
0:00:10.1]} 36. Qxh3 {[%clk 0:01:26.1]} 36... Qxb3 {[%clk 0:00:10.4]} 37. Qf5
{[%clk 0:01:21.8]} 37... Qf7 {[%clk 0:00:08.8]} 38. h4 {[%clk 0:01:21.5]} 38...
g6 {[%clk 0:00:08.7]} 39. Qa5 {[%clk 0:01:19.6]} 39... Rd7 {[%clk 0:00:08.5]}
40. Qa8+ {[%clk 0:01:19.6]} 40... Kg7 {[%clk 0:00:08.4]} 41. Qa1 {[%clk
0:01:17.2]} 41... Qd5 {[%clk 0:00:08]} 42. Qe1 {[%clk 0:01:14.8]} 42... Kf7
{[%clk 0:00:07.7]} 43. Qb1 {[%clk 0:01:12.1]} 43... Qe6 {[%clk 0:00:05.9]} 44.
Qb8 {[%clk 0:01:11.2]} 44... Qe1+ {[%clk 0:00:05.5]} 45. Kg2 {[%clk 0:01:11.2]}
45... Qe4+ {[%clk 0:00:05.7]} 46. Kh2 {[%clk 0:01:11.7]} 46... Kg7 {[%clk
0:00:05]} 47. Qc8 {[%clk 0:01:08.5]} 47... Qf5 {[%clk 0:00:05.2]} 48. Qe8 {[%clk
0:01:04]} 48... g5 {[%clk 0:00:05.2]} 49. Qh5 {[%clk 0:01:00]} 49... Qg6 {[%clk
0:00:02.3]} 50. Qg4 {[%clk 0:00:59.9]} 50... Qf7 {[%clk 0:00:01.7]} 51. hxg5
{[%clk 0:00:59.7]} 51... f5 {[%clk 0:00:02.1]} 52. Qh4 {[%clk 0:00:58.8]} 52...
Qg6 {[%clk 0:00:02.5]} 53. Be5+ {[%clk 0:00:54.4]} 53... Kf7 {[%clk 0:00:02.9]}
54. Qc4+ {[%clk 0:00:53.6]} 54... Kf8 {[%clk 0:00:02.5]} 55. Bf6 {[%clk
0:00:40.4]} 55... Qh5+ {[%clk 0:00:02.5]} 56. Kg2 {[%clk 0:00:40.4]} 56... Qe8
{[%clk 0:00:02.2]} 57. Be7+ {[%clk 0:00:32.4]} 57... Rxe7 {[%clk 0:00:02.2]} 58.
dxe7+ {[%clk 0:00:33.3]} 58... Qxe7 {[%clk 0:00:02.9]} 59. Qf4 {[%clk
0:00:33.1]} 59... Qb7+ {[%clk 0:00:02.1]} 60. Kh2 {[%clk 0:00:33.4]} 60... Qd5
{[%clk 0:00:01.8]} 61. g4 {[%clk 0:00:33.4]} 61... Qd1 {[%clk 0:00:01.8]} 62.
Qxf5+ {[%clk 0:00:31.3]} 62... Kg8 {[%clk 0:00:02.2]} 63. g6 {[%clk 0:00:30.2]}
63... Kg7 {[%clk 0:00:02.1]} 64. Qf7+ {[%clk 0:00:30.1]} 64... Kh6 {[%clk
0:00:02.5]} 65. Qh7+ {[%clk 0:00:28.1]} 65... Kg5 {[%clk 0:00:02.9]} 66. Qh5+
{[%clk 0:00:28.4]} 66... Kf6 {[%clk 0:00:03.3]} 67. g5+ {[%clk 0:00:27.2]} 67...
Kg7 {[%clk 0:00:03.6]} 68. Qxd1 {[%clk 0:00:27.2]} 1-0

[Event "Early-Titled-Tuesday-Blitz-March-19-2024"]
[Site "Chess.com"]
[Date "2024.03.19"]
[Round "10"]
[White "enriquebutti"]
[Black "bazar-wokzal"]
[Result "0-1"]
[WhiteElo "2213"]
[BlackElo "2571"]
[TimeControl "180+1"]
[EndTime "9:56:21 PDT"]
[Termination "bazar-wokzal won on time"]

1. d4 {[%clk 0:03:00]} 1... Nf6 {[%clk 0:02:59.8]} 2. Nf3 {[%clk 0:02:59.5]}
2... e6 {[%clk 0:02:59.9]} 3. e3 {[%clk 0:02:59]} 3... c5 {[%clk 0:02:59.8]} 4.
Bd3 {[%clk 0:02:58.4]} 4... b6 {[%clk 0:03:00.2]} 5. O-O {[%clk 0:02:57.5]} 5...
Bb7 {[%clk 0:03:00.6]} 6. b3 {[%clk 0:02:57.3]} 6... Be7 {[%clk 0:03:00.4]} 7.
Bb2 {[%clk 0:02:56]} 7... d6 {[%clk 0:03:00.9]} 8. c4 {[%clk 0:02:55.5]} 8...
Nbd7 {[%clk 0:03:01]} 9. Nc3 {[%clk 0:02:55.2]} 9... a6 {[%clk 0:02:59]} 10. Qe2
{[%clk 0:02:54.8]} 10... Qc7 {[%clk 0:02:58.9]} 11. Rad1 {[%clk 0:02:54]} 11...
g5 {[%clk 0:02:55.4]} 12. d5 {[%clk 0:02:45.2]} 12... exd5 {[%clk 0:02:49.6]}
13. Nxd5 {[%clk 0:02:44.4]} 13... Bxd5 {[%clk 0:02:49.3]} 14. cxd5 {[%clk
0:02:43.9]} 14... Rg8 {[%clk 0:02:46.9]} 15. Bxa6 {[%clk 0:02:37]} 15... g4
{[%clk 0:02:24]} 16. Nh4 {[%clk 0:02:27.4]} 16... Nxd5 {[%clk 0:02:23.8]} 17.
Nf5 {[%clk 0:02:21.1]} 17... Nb4 {[%clk 0:02:22.9]} 18. Bc4 {[%clk 0:02:03.6]}
18... Rxa2 {[%clk 0:02:21.9]} 19. Ra1 {[%clk 0:02:03]} 19... Ra5 {[%clk
0:02:01.9]} 20. Rxa5 {[%clk 0:01:59.7]} 20... bxa5 {[%clk 0:02:02.3]} 21. Bxf7+
{[%clk 0:01:48.2]} 21... Kxf7 {[%clk 0:01:58.7]} 22. Nh6+ {[%clk 0:01:47.8]}
22... Kf8 {[%clk 0:01:59.1]} 23. Nxg8 {[%clk 0:01:47.5]} 23... Kxg8 {[%clk
0:01:59.5]} 24. Qxg4+ {[%clk 0:01:47.2]} 24... Kf7 {[%clk 0:01:55.2]} 25. Qh5+
{[%clk 0:01:43.6]} 25... Kf8 {[%clk 0:01:46]} 26. Qxh7 {[%clk 0:01:42.3]} 26...
Ke8 {[%clk 0:01:38.2]} 27. Qg8+ {[%clk 0:01:34.7]} 27... Nf8 {[%clk 0:01:37.3]}
28. Bg7 {[%clk 0:01:26.8]} 28... Qd7 {[%clk 0:01:32.2]} 29. Ra1 {[%clk
0:01:12.6]} 29... Nc6 {[%clk 0:01:30.8]} 30. Bxf8 {[%clk 0:01:06.9]} 30... Bxf8
{[%clk 0:01:30.5]} 31. Qd5 {[%clk 0:01:05.3]} 31... Kd8 {[%clk 0:01:22.2]} 32.
f4 {[%clk 0:01:03.9]} 32... Kc7 {[%clk 0:01:22.3]} 33. f5 {[%clk 0:00:56]} 33...
Bg7 {[%clk 0:01:21.2]} 34. Rf1 {[%clk 0:00:55.1]} 34... Be5 {[%clk 0:01:13.4]}
35. f6 {[%clk 0:00:51.3]} 35... Qh7 {[%clk 0:01:06]} 36. g3 {[%clk 0:00:45.2]}
36... Nb4 {[%clk 0:01:00.4]} 37. Qe6 {[%clk 0:00:34.9]} 37... Qe4 {[%clk
0:00:44.6]} 38. f7 {[%clk 0:00:23.7]} 38... Qxe3+ {[%clk 0:00:44.5]} 39. Rf2
{[%clk 0:00:23.3]} 39... Qe1+ {[%clk 0:00:37.4]} 40. Kg2 {[%clk 0:00:23.2]}
40... Qe4+ {[%clk 0:00:37.5]} 41. Kh3 {[%clk 0:00:21]} 41... Qh7+ {[%clk
0:00:36.1]} 42. Kg4 {[%clk 0:00:20.7]} 42... Qe4+ {[%clk 0:00:21.7]} 43. Rf4
{[%clk 0:00:15.5]} 43... Qe2+ {[%clk 0:00:20.9]} 44. Kh3 {[%clk 0:00:14.4]}
44... Qh5+ {[%clk 0:00:12]} 45. Rh4 {[%clk 0:00:13.8]} 45... Qd1 {[%clk
0:00:09]} 46. Qe7+ {[%clk 0:00:12.8]} 46... Kc6 {[%clk 0:00:08.2]} 47. Qe8+
{[%clk 0:00:12.1]} 47... Kd5 {[%clk 0:00:07.9]} 48. Rd4+ {[%clk 0:00:05.9]}
48... cxd4 {[%clk 0:00:07.5]} 49. f8=Q {[%clk 0:00:05.2]} 49... d3 {[%clk
0:00:06.3]} 50. Qff7+ {[%clk 0:00:04.5]} 50... Kd4 {[%clk 0:00:06.6]} 51. Qc4+
{[%clk 0:00:03.5]} 51... Ke3 {[%clk 0:00:06.7]} 52. Qg6 {[%clk 0:00:02]} 52...
Qf1+ {[%clk 0:00:06.3]} 0-1